[Event "*** Titled Tuesday Blitz"]
[Site "Chess.com"]
[Date "2020.05.05"]
[Round "4"]
[White "Dinamo81"]
[Black "amiralfio"]
[Result "1-0"]
[WhiteElo "2657"]
[BlackElo "2469"]
[TimeControl "180+1"]
[EndTime "10:39:54 PDT"]
[Termination "Dinamo81 won by checkmate"]

1. d4 {[%clk 0:03:00.9]} 1... f5 {[%clk 0:01:58.9]} 2. Nc3 {[%clk 0:02:58.3]}
2... Nf6 {[%clk 0:01:57.4]} 3. Bg5 {[%clk 0:02:57.2]} 3... Nc6 {[%clk
0:01:49.2]} 4. d5 {[%clk 0:02:42.8]} 4... Ne5 {[%clk 0:01:47.4]} 5. Qd4 {[%clk
0:02:37.7]} 5... Nf7 {[%clk 0:01:47.4]} 6. Bxf6 {[%clk 0:02:31.6]} 6... exf6
{[%clk 0:01:48.3]} 7. Nf3 {[%clk 0:02:29.4]} 7... g6 {[%clk 0:01:43.4]} 8. O-O-O
{[%clk 0:02:28]} 8... Bg7 {[%clk 0:01:40.2]} 9. h4 {[%clk 0:02:25.7]} 9... O-O
{[%clk 0:01:38.8]} 10. h5 {[%clk 0:02:24.5]} 10... g5 {[%clk 0:01:29.4]} 11. e3
{[%clk 0:02:12.6]} 11... d6 {[%clk 0:01:03.4]} 12. Be2 {[%clk 0:02:10]} 12...
Bd7 {[%clk 0:00:51.9]} 13. Qd2 {[%clk 0:02:09.4]} 13... b5 {[%clk 0:00:41.2]}
14. Bxb5 {[%clk 0:02:05.4]} 14... Bxb5 {[%clk 0:00:36.6]} 15. Nxb5 {[%clk
0:02:06.3]} 15... Rb8 {[%clk 0:00:37.1]} 16. Nbd4 {[%clk 0:02:04.9]} 16... Qd7
{[%clk 0:00:35.6]} 17. Nc6 {[%clk 0:01:56.9]} 17... Rb6 {[%clk 0:00:24.5]} 18.
Nfd4 {[%clk 0:01:56.4]} 18... Ne5 {[%clk 0:00:23.1]} 19. Qc3 {[%clk 0:01:53.5]}
19... a6 {[%clk 0:00:17]} 20. f4 {[%clk 0:01:52.9]} 20... Ng4 {[%clk 0:00:16.1]}
21. Qd2 {[%clk 0:01:46.2]} 21... Re8 {[%clk 0:00:16.2]} 22. Rde1 {[%clk
0:01:43.6]} 22... Re4 {[%clk 0:00:13.2]} 23. g3 {[%clk 0:01:41.4]} 23... h6
{[%clk 0:00:09.4]} 24. Rhf1 {[%clk 0:01:39.6]} 24... Qf7 {[%clk 0:00:06.8]} 25.
Nxf5 {[%clk 0:01:37.4]} 25... Bf8 {[%clk 0:00:07.3]} 26. Qd3 {[%clk 0:01:36]}
26... Re8 {[%clk 0:00:06.6]} 27. e4 {[%clk 0:01:34.3]} 27... Rxc6 {[%clk
0:00:06]} 28. dxc6 {[%clk 0:01:33.4]} 28... Qxa2 {[%clk 0:00:06.6]} 29. Qd5+
{[%clk 0:01:33.5]} 29... Qxd5 {[%clk 0:00:06.4]} 30. exd5 {[%clk 0:01:34.4]}
30... Rb8 {[%clk 0:00:05.8]} 31. Re6 {[%clk 0:01:32.3]} 31... Kf7 {[%clk
0:00:05.7]} 32. Rfe1 {[%clk 0:01:32.2]} 32... Rb5 {[%clk 0:00:04.2]} 33. c4
{[%clk 0:01:31.2]} 33... Rb4 {[%clk 0:00:03.7]} 34. b3 {[%clk 0:01:29.1]} 34...
Rxb3 {[%clk 0:00:03.4]} 35. Re7+ {[%clk 0:01:29.3]} 35... Bxe7 {[%clk
0:00:03.2]} 36. Rxe7+ {[%clk 0:01:30.2]} 36... Kf8 {[%clk 0:00:04]} 37. Rxc7
{[%clk 0:01:30.2]} 37... Rc3+ {[%clk 0:00:04.4]} 38. Kb2 {[%clk 0:01:29.5]}
38... Rxc4 {[%clk 0:00:05.3]} 39. Rc8+ {[%clk 0:01:29.9]} 39... Kf7 {[%clk
0:00:05.8]} 40. Nxd6+ {[%clk 0:01:30.5]} 40... Ke7 {[%clk 0:00:05]} 41. Nxc4
{[%clk 0:01:30.4]} 41... gxf4 {[%clk 0:00:04.6]} 42. gxf4 {[%clk 0:01:29]} 42...
Nf2 {[%clk 0:00:03.6]} 43. d6+ {[%clk 0:01:27.7]} 43... Kf7 {[%clk 0:00:03.1]}
44. d7 {[%clk 0:01:26.7]} 44... Nd3+ {[%clk 0:00:04]} 45. Kc3 {[%clk 0:01:26.4]}
45... Nxf4 {[%clk 0:00:04.9]} 46. d8=Q {[%clk 0:01:26.1]} 46... Ne6 {[%clk
0:00:05.8]} 47. Qd7# {[%clk 0:01:25.7]} 1-0

[Event "*** Titled Tuesday Blitz"]
[Site "Chess.com"]
[Date "2020.05.05"]
[Round "4"]
[White "51616516516"]
[Black "pedromartinez91"]
[Result "0-1"]
[WhiteElo "2296"]
[BlackElo "2521"]
[TimeControl "180+1"]
[EndTime "10:39:56 PDT"]
[Termination "pedromartinez91 won on time"]

1. d4 {[%clk 0:03:00.9]} 1... d5 {[%clk 0:03:00]} 2. c4 {[%clk 0:03:00.6]} 2...
dxc4 {[%clk 0:02:57.3]} 3. Nf3 {[%clk 0:03:00]} 3... Nf6 {[%clk 0:02:57.8]} 4.
e3 {[%clk 0:02:56]} 4... e6 {[%clk 0:02:54.8]} 5. Bxc4 {[%clk 0:02:54.5]} 5...
c5 {[%clk 0:02:55.5]} 6. O-O {[%clk 0:02:53.2]} 6... Nc6 {[%clk 0:02:54.8]} 7.
Qe2 {[%clk 0:02:52.2]} 7... cxd4 {[%clk 0:02:54.8]} 8. exd4 {[%clk 0:02:52.3]}
8... Be7 {[%clk 0:02:55.1]} 9. Rd1 {[%clk 0:02:51.6]} 9... O-O {[%clk
0:02:55.1]} 10. Nc3 {[%clk 0:02:51.4]} 10... Na5 {[%clk 0:02:54.7]} 11. Bd3
{[%clk 0:02:50.1]} 11... b6 {[%clk 0:02:55]} 12. Bg5 {[%clk 0:02:28.9]} 12...
Bb7 {[%clk 0:02:53.2]} 13. Bc2 {[%clk 0:02:18.5]} 13... Nd5 {[%clk 0:02:48.3]}
14. Qd3 {[%clk 0:02:08.6]} 14... f5 {[%clk 0:02:43.4]} 15. Bxe7 {[%clk 0:02:04]}
15... Qxe7 {[%clk 0:02:44.3]} 16. Nxd5 {[%clk 0:01:40.8]} 16... Bxd5 {[%clk
0:02:45.2]} 17. Re1 {[%clk 0:01:26.6]} 17... Qb7 {[%clk 0:02:33.7]} 18. Ng5
{[%clk 0:00:54.3]} 18... Rf6 {[%clk 0:02:33.3]} 19. f3 {[%clk 0:00:44.8]} 19...
Rg6 {[%clk 0:02:27.5]} 20. Nh3 {[%clk 0:00:35.6]} 20... Bxf3 {[%clk 0:02:17.2]}
21. Nf4 {[%clk 0:00:34.6]} 21... Be4 {[%clk 0:02:17.7]} 22. Qe2 {[%clk
0:00:28.7]} 22... Rg4 {[%clk 0:01:30.8]} 23. Bxe4 {[%clk 0:00:27.7]} 23... Qxe4
{[%clk 0:01:31.7]} 24. Qxe4 {[%clk 0:00:26.8]} 24... fxe4 {[%clk 0:01:32.6]} 25.
Nxe6 {[%clk 0:00:24.4]} 25... Rc8 {[%clk 0:01:17.5]} 26. h3 {[%clk 0:00:21.4]}
26... Rg6 {[%clk 0:01:16.8]} 27. d5 {[%clk 0:00:17.4]} 27... Rc2 {[%clk
0:01:16.5]} 28. Nf4 {[%clk 0:00:17.5]} 28... Rd6 {[%clk 0:01:16]} 29. Rac1
{[%clk 0:00:16.3]} 29... Rxc1 {[%clk 0:01:13.1]} 30. Rxc1 {[%clk 0:00:15.4]}
30... g5 {[%clk 0:01:13.7]} 31. Rc8+ {[%clk 0:00:15]} 31... Kf7 {[%clk
0:01:14.3]} 32. Rc7+ {[%clk 0:00:14.7]} 32... Kf6 {[%clk 0:01:14.2]} 33. Nh5+
{[%clk 0:00:12.6]} 33... Ke5 {[%clk 0:01:14.3]} 34. Rxh7 {[%clk 0:00:09.2]}
34... Kd4 {[%clk 0:01:14.1]} 35. Rxa7 {[%clk 0:00:08.4]} 35... Kd3 {[%clk
0:01:13.9]} 36. Ng3 {[%clk 0:00:05.8]} 36... e3 {[%clk 0:01:13.3]} 37. Re7
{[%clk 0:00:05.3]} 37... Nc4 {[%clk 0:01:13]} 38. Kh2 {[%clk 0:00:02.7]} 38...
Rxd5 {[%clk 0:01:11.9]} 39. b3 {[%clk 0:00:01.6]} 39... Nd2 {[%clk 0:01:12.1]}
0-1

[Event "*** Titled Tuesday Blitz"]
[Site "Chess.com"]
[Date "2020.05.05"]
[Round "4"]
[White "Tashik"]
[Black "ntmh281"]
[Result "1-0"]
[WhiteElo "2465"]
[BlackElo "2284"]
[TimeControl "180+1"]
[EndTime "10:39:58 PDT"]
[Termination "Tashik won by resignation"]

1. c4 {[%clk 0:03:00.9]} 1... c6 {[%clk 0:02:59.6]} 2. d4 {[%clk 0:03:00.5]}
2... d5 {[%clk 0:03:00.5]} 3. Nf3 {[%clk 0:03:00.9]} 3... Nf6 {[%clk 0:03:00.8]}
4. Nc3 {[%clk 0:03:01.3]} 4... e6 {[%clk 0:03:01.2]} 5. Bg5 {[%clk 0:03:01]}
5... h6 {[%clk 0:03:01.1]} 6. Bh4 {[%clk 0:03:00.8]} 6... dxc4 {[%clk
0:02:59.1]} 7. e4 {[%clk 0:03:00.2]} 7... g5 {[%clk 0:02:59.5]} 8. Bg3 {[%clk
0:02:59.8]} 8... b5 {[%clk 0:03:00.2]} 9. h4 {[%clk 0:02:53.8]} 9... Rg8 {[%clk
0:02:44.9]} 10. hxg5 {[%clk 0:02:51.3]} 10... hxg5 {[%clk 0:02:45.8]} 11. Be2
{[%clk 0:02:51.2]} 11... Bb7 {[%clk 0:02:43.5]} 12. Qc2 {[%clk 0:02:41.9]} 12...
Nbd7 {[%clk 0:02:40.9]} 13. Rd1 {[%clk 0:02:16.9]} 13... Be7 {[%clk 0:02:13.7]}
14. Kf1 {[%clk 0:02:09.5]} 14... a6 {[%clk 0:02:03.3]} 15. b3 {[%clk 0:02:08.6]}
15... cxb3 {[%clk 0:02:02]} 16. axb3 {[%clk 0:02:09.5]} 16... c5 {[%clk
0:01:23.6]} 17. dxc5 {[%clk 0:01:53.3]} 17... Bxc5 {[%clk 0:01:18.6]} 18. Ne5
{[%clk 0:01:48.1]} 18... Qb6 {[%clk 0:01:14.7]} 19. Nxd7 {[%clk 0:01:43.2]}
19... Nxd7 {[%clk 0:01:15.6]} 20. Rh7 {[%clk 0:01:32.6]} 20... Rd8 {[%clk
0:01:12.8]} 21. Bh5 {[%clk 0:01:30]} 21... Rf8 {[%clk 0:01:07.3]} 22. e5 {[%clk
0:01:27.3]} 22... Bd4 {[%clk 0:00:41.3]} 23. Bxf7+ {[%clk 0:01:19.8]} 23... Rxf7
{[%clk 0:00:38.3]} 24. Qg6 {[%clk 0:01:20.3]} 24... Nxe5 {[%clk 0:00:30.9]} 25.
Bxe5 {[%clk 0:01:07.3]} 25... Bxg2+ {[%clk 0:00:22.1]} 26. Kxg2 {[%clk
0:01:02.9]} 26... Qb7+ {[%clk 0:00:19.5]} 27. Ne4 {[%clk 0:01:00.7]} 27... Bxe5
{[%clk 0:00:15.6]} 28. Rxf7 {[%clk 0:00:43.1]} 28... Qxf7 {[%clk 0:00:15.1]} 29.
Rxd8+ {[%clk 0:00:42.8]} 29... Ke7 {[%clk 0:00:13]} 30. Rd7+ {[%clk 0:00:42.8]}
30... Kxd7 {[%clk 0:00:13.1]} 31. Qxf7+ {[%clk 0:00:43.4]} 1-0

[Event "*** Titled Tuesday Blitz"]
[Site "Chess.com"]
[Date "2020.05.05"]
[Round "4"]
[White "Harry_Rakkel"]
[Black "TigrVShlyape"]
[Result "0-1"]
[WhiteElo "2628"]
[BlackElo "2819"]
[TimeControl "180+1"]
[EndTime "10:39:59 PDT"]
[Termination "TigrVShlyape won by checkmate"]

1. d4 {[%clk 0:03:00.9]} 1... Nf6 {[%clk 0:02:58.2]} 2. c4 {[%clk 0:03:00.6]}
2... g6 {[%clk 0:02:57.4]} 3. Nc3 {[%clk 0:03:00.2]} 3... Bg7 {[%clk 0:02:57.8]}
4. e4 {[%clk 0:02:59.1]} 4... d6 {[%clk 0:02:57.8]} 5. f3 {[%clk 0:02:58.7]}
5... Nbd7 {[%clk 0:02:51.3]} 6. Nge2 {[%clk 0:02:56.5]} 6... a6 {[%clk
0:02:51.1]} 7. Bg5 {[%clk 0:02:45.1]} 7... c6 {[%clk 0:02:43.1]} 8. Qd2 {[%clk
0:02:40.5]} 8... h6 {[%clk 0:02:41.9]} 9. Be3 {[%clk 0:02:39.2]} 9... b5 {[%clk
0:02:41.5]} 10. b3 {[%clk 0:02:19.2]} 10... bxc4 {[%clk 0:02:40.5]} 11. bxc4
{[%clk 0:02:18.8]} 11... c5 {[%clk 0:02:39.5]} 12. d5 {[%clk 0:02:15.4]} 12...
Rb8 {[%clk 0:02:33.6]} 13. Rc1 {[%clk 0:02:12.3]} 13... Ne5 {[%clk 0:02:28.2]}
14. Ng3 {[%clk 0:02:07.9]} 14... Rb4 {[%clk 0:02:27.7]} 15. Nd1 {[%clk
0:02:03.9]} 15... h5 {[%clk 0:02:23]} 16. Be2 {[%clk 0:01:55.3]} 16... h4 {[%clk
0:02:01.7]} 17. Nf1 {[%clk 0:01:54]} 17... a5 {[%clk 0:01:24.2]} 18. Qc2 {[%clk
0:01:41.2]} 18... e6 {[%clk 0:01:11.1]} 19. Bd2 {[%clk 0:01:37.9]} 19... exd5
{[%clk 0:01:02.6]} 20. Bxb4 {[%clk 0:01:24.8]} 20... axb4 {[%clk 0:01:01.8]} 21.
cxd5 {[%clk 0:01:24.6]} 21... Nh5 {[%clk 0:00:56]} 22. Nfe3 {[%clk 0:01:12.3]}
22... Qg5 {[%clk 0:00:51.7]} 23. Bb5+ {[%clk 0:01:06.7]} 23... Kf8 {[%clk
0:00:48.3]} 24. O-O {[%clk 0:01:00.2]} 24... Nf4 {[%clk 0:00:44.1]} 25. Kh1
{[%clk 0:00:57]} 25... Nh5 {[%clk 0:00:39.3]} 26. f4 {[%clk 0:00:33.6]} 26...
Nxf4 {[%clk 0:00:36.4]} 27. Nc4 {[%clk 0:00:30]} 27... Nxc4 {[%clk 0:00:33]} 28.
Bxc4 {[%clk 0:00:27.8]} 28... Be5 {[%clk 0:00:32.8]} 29. Ne3 {[%clk 0:00:26.5]}
29... Nh5 {[%clk 0:00:31.4]} 30. Kg1 {[%clk 0:00:23]} 30... Qxe3+ {[%clk
0:00:30.4]} 31. Kh1 {[%clk 0:00:21.9]} 31... Ng3+ {[%clk 0:00:29.9]} 32. hxg3
{[%clk 0:00:20.7]} 32... hxg3# {[%clk 0:00:29.7]} 0-1

[Event "*** Titled Tuesday Blitz"]
[Site "Chess.com"]
[Date "2020.05.05"]
[Round "4"]
[White "GOGIEFF"]
[Black "afgano29"]
[Result "1-0"]
[WhiteElo "2998"]
[BlackElo "2699"]
[TimeControl "180+1"]
[EndTime "10:40:02 PDT"]
[Termination "GOGIEFF won on time"]

1. d4 {[%clk 0:03:00.3]} 1... Nf6 {[%clk 0:03:00]} 2. c4 {[%clk 0:02:59.6]} 2...
g6 {[%clk 0:03:00]} 3. Nc3 {[%clk 0:02:59.3]} 3... d5 {[%clk 0:03:00.5]} 4. Nf3
{[%clk 0:02:59.4]} 4... Bg7 {[%clk 0:03:00.4]} 5. cxd5 {[%clk 0:02:59.1]} 5...
Nxd5 {[%clk 0:03:00.4]} 6. Bd2 {[%clk 0:02:59.8]} 6... O-O {[%clk 0:02:59]} 7.
Rc1 {[%clk 0:02:59]} 7... Nb6 {[%clk 0:02:55.7]} 8. Bg5 {[%clk 0:02:57.9]} 8...
h6 {[%clk 0:02:50]} 9. Bh4 {[%clk 0:02:57]} 9... Nc6 {[%clk 0:02:38]} 10. e3
{[%clk 0:02:55.9]} 10... Bg4 {[%clk 0:02:26.2]} 11. Bb5 {[%clk 0:02:50.5]} 11...
Nb4 {[%clk 0:01:59.9]} 12. O-O {[%clk 0:02:43.3]} 12... c6 {[%clk 0:01:57.1]}
13. Be2 {[%clk 0:02:41.5]} 13... N4d5 {[%clk 0:01:53]} 14. h3 {[%clk 0:02:37.6]}
14... Bxf3 {[%clk 0:01:48.8]} 15. Bxf3 {[%clk 0:02:36.6]} 15... Nxc3 {[%clk
0:01:47.7]} 16. bxc3 {[%clk 0:02:35.6]} 16... Qd7 {[%clk 0:01:41.9]} 17. Qb3
{[%clk 0:02:30.1]} 17... e5 {[%clk 0:01:35.5]} 18. Rfd1 {[%clk 0:02:29.1]} 18...
Qc7 {[%clk 0:01:30.3]} 19. a4 {[%clk 0:02:26.9]} 19... Rfe8 {[%clk 0:01:26.8]}
20. a5 {[%clk 0:02:20.6]} 20... Nd7 {[%clk 0:01:22.7]} 21. a6 {[%clk 0:02:18.8]}
21... b6 {[%clk 0:00:49.3]} 22. c4 {[%clk 0:02:02.3]} 22... Rac8 {[%clk
0:00:30.5]} 23. Bg3 {[%clk 0:02:02.3]} 23... c5 {[%clk 0:00:21.5]} 24. Qb5
{[%clk 0:01:54.4]} 24... Nf8 {[%clk 0:00:16]} 25. Bb7 {[%clk 0:01:50.1]} 25...
Rcd8 {[%clk 0:00:13.9]} 26. dxc5 {[%clk 0:01:39.5]} 26... Qxc5 {[%clk
0:00:12.4]} 27. Qxc5 {[%clk 0:01:38.7]} 27... bxc5 {[%clk 0:00:13.3]} 28. Rd5
{[%clk 0:01:35.6]} 28... Ne6 {[%clk 0:00:12]} 29. f3 {[%clk 0:01:35.9]} 29...
Nc7 {[%clk 0:00:10.1]} 30. Rxc5 {[%clk 0:01:34.7]} 30... Ne6 {[%clk 0:00:10]}
31. Rd5 {[%clk 0:01:35.1]} 31... f6 {[%clk 0:00:09.2]} 32. Bf2 {[%clk
0:01:32.7]} 32... Bf8 {[%clk 0:00:09.1]} 33. e4 {[%clk 0:01:33.1]} 33... Nd4
{[%clk 0:00:08.5]} 34. Kf1 {[%clk 0:01:31.8]} 34... Ba3 {[%clk 0:00:06.5]} 35.
Rb1 {[%clk 0:01:29.5]} 35... Rxd5 {[%clk 0:00:06]} 36. exd5 {[%clk 0:01:28.3]}
36... Bc5 {[%clk 0:00:06.4]} 37. Rb5 {[%clk 0:01:26.2]} 37... Nxb5 {[%clk
0:00:04.7]} 38. Bxc5 {[%clk 0:01:26.7]} 38... Nd4 {[%clk 0:00:02.7]} 39. Bxa7
{[%clk 0:01:24.9]} 39... Nb3 {[%clk 0:00:01.2]} 40. Ke2 {[%clk 0:01:21.6]} 40...
Na5 {[%clk 0:00:01.6]} 41. c5 {[%clk 0:01:21.3]} 41... Re7 {[%clk 0:00:01.8]}
42. c6 {[%clk 0:01:21]} 1-0

[Event "*** Titled Tuesday Blitz"]
[Site "Chess.com"]
[Date "2020.05.05"]
[Round "4"]
[White "Pavlov_Sergey"]
[Black "Cocaino74"]
[Result "1-0"]
[WhiteElo "2595"]
[BlackElo "2353"]
[TimeControl "180+1"]
[EndTime "10:40:03 PDT"]
[Termination "Pavlov_Sergey won by resignation"]

1. Nf3 {[%clk 0:03:00.9]} 1... d5 {[%clk 0:02:54.2]} 2. c4 {[%clk 0:02:58.8]}
2... dxc4 {[%clk 0:02:43.3]} 3. Na3 {[%clk 0:02:57.8]} 3... g6 {[%clk
0:02:39.5]} 4. Nxc4 {[%clk 0:02:56.4]} 4... Bg7 {[%clk 0:02:39.6]} 5. g3 {[%clk
0:02:52.5]} 5... Nf6 {[%clk 0:02:37.4]} 6. Bg2 {[%clk 0:02:52.2]} 6... c5 {[%clk
0:02:35.8]} 7. O-O {[%clk 0:02:41.8]} 7... Nc6 {[%clk 0:02:33.1]} 8. b3 {[%clk
0:02:41.2]} 8... b5 {[%clk 0:01:47.4]} 9. Nfe5 {[%clk 0:02:31.9]} 9... Nxe5
{[%clk 0:01:24.6]} 10. Nxe5 {[%clk 0:02:31]} 10... Nd5 {[%clk 0:01:02.6]} 11.
Bb2 {[%clk 0:02:19.7]} 11... O-O {[%clk 0:00:49.4]} 12. Nc6 {[%clk 0:02:10]}
12... Qd6 {[%clk 0:00:43.8]} 13. Bxd5 {[%clk 0:01:56.1]} 13... Bxb2 {[%clk
0:00:41.5]} 14. Rb1 {[%clk 0:01:56.1]} 14... Bb7 {[%clk 0:00:27.6]} 15. Nxe7+
{[%clk 0:01:50]} 15... Qxe7 {[%clk 0:00:28.5]} 16. Bxb7 {[%clk 0:01:50]} 16...
Qxb7 {[%clk 0:00:17.6]} 17. Rxb2 {[%clk 0:01:50.2]} 17... Rfd8 {[%clk
0:00:13.1]} 18. Qc2 {[%clk 0:01:48.3]} 18... Rac8 {[%clk 0:00:13.2]} 19. d3
{[%clk 0:01:47.3]} 19... Qe7 {[%clk 0:00:11.8]} 20. Rc1 {[%clk 0:01:45.4]} 20...
h5 {[%clk 0:00:11.8]} 21. h4 {[%clk 0:01:44]} 21... Qe5 {[%clk 0:00:10.3]} 22.
a4 {[%clk 0:01:36.6]} 22... a6 {[%clk 0:00:08.7]} 23. axb5 {[%clk 0:01:36.3]}
23... axb5 {[%clk 0:00:09.6]} 24. Qc3 {[%clk 0:01:36.4]} 24... Qxc3 {[%clk
0:00:09.3]} 25. Rxc3 {[%clk 0:01:35.9]} 25... b4 {[%clk 0:00:02.5]} 26. Rc4
{[%clk 0:01:32.6]} 26... Rd7 {[%clk 0:00:01.7]} 27. Rbc2 {[%clk 0:01:31.6]}
27... Rdc7 {[%clk 0:00:01.8]} 28. d4 {[%clk 0:01:28.3]} 28... Kf8 {[%clk
0:00:02.2]} 29. Rxc5 {[%clk 0:01:25.4]} 29... Rxc5 {[%clk 0:00:02.3]} 30. Rxc5
{[%clk 0:01:25.4]} 30... Rd8 {[%clk 0:00:01.6]} 31. e3 {[%clk 0:01:22.9]} 31...
Rb8 {[%clk 0:00:02.1]} 32. Kf1 {[%clk 0:01:22]} 32... Ke7 {[%clk 0:00:02.6]} 33.
Ke2 {[%clk 0:01:22.2]} 33... Kd6 {[%clk 0:00:01.9]} 34. Rc4 {[%clk 0:01:21.4]}
34... Rb5 {[%clk 0:00:01.5]} 35. Kd3 {[%clk 0:01:20.2]} 35... f6 {[%clk
0:00:01.8]} 36. e4 {[%clk 0:01:19.6]} 36... g5 {[%clk 0:00:01.4]} 37. f4 {[%clk
0:01:16.2]} 37... gxh4 {[%clk 0:00:01.3]} 38. gxh4 {[%clk 0:01:16]} 38... Ke7
{[%clk 0:00:01.6]} 39. e5 {[%clk 0:01:12.6]} 39... fxe5 {[%clk 0:00:02.5]} 40.
fxe5 {[%clk 0:01:12.2]} 40... Ke6 {[%clk 0:00:02]} 41. Ke4 {[%clk 0:01:12.2]}
41... Rb6 {[%clk 0:00:02.2]} 42. d5+ {[%clk 0:01:11.7]} 42... Ke7 {[%clk
0:00:02.9]} 43. Kf5 {[%clk 0:01:10.6]} 1-0

[Event "*** Titled Tuesday Blitz"]
[Site "Chess.com"]
[Date "2020.05.05"]
[Round "4"]
[White "Roenko_Artur"]
[Black "Lion-Al-Messi"]
[Result "0-1"]
[WhiteElo "2204"]
[BlackElo "2417"]
[TimeControl "180+1"]
[EndTime "10:40:03 PDT"]
[Termination "Lion-Al-Messi won on time"]

1. d4 {[%clk 0:03:00.9]} 1... b6 {[%clk 0:02:59.8]} 2. e4 {[%clk 0:02:57.9]}
2... Bb7 {[%clk 0:02:59.7]} 3. Bd3 {[%clk 0:02:57.9]} 3... e6 {[%clk 0:02:59]}
4. Nf3 {[%clk 0:02:54.6]} 4... c5 {[%clk 0:02:58.2]} 5. c3 {[%clk 0:02:53.7]}
5... Nf6 {[%clk 0:02:58.4]} 6. Qe2 {[%clk 0:02:52.3]} 6... Be7 {[%clk
0:02:56.4]} 7. O-O {[%clk 0:02:51.3]} 7... Nc6 {[%clk 0:02:46.5]} 8. Bg5 {[%clk
0:02:41.9]} 8... cxd4 {[%clk 0:02:45.9]} 9. cxd4 {[%clk 0:02:40.8]} 9... Nb4
{[%clk 0:02:45.7]} 10. Bxf6 {[%clk 0:02:22.5]} 10... Bxf6 {[%clk 0:02:45]} 11.
Bc4 {[%clk 0:02:08.7]} 11... Rc8 {[%clk 0:02:43.5]} 12. a3 {[%clk 0:01:48.3]}
12... b5 {[%clk 0:02:41.5]} 13. axb4 {[%clk 0:01:32.6]} 13... bxc4 {[%clk
0:02:38.2]} 14. Rxa7 {[%clk 0:01:22.7]} 14... Qb6 {[%clk 0:02:38]} 15. Ra2
{[%clk 0:01:05.3]} 15... O-O {[%clk 0:02:36.2]} 16. e5 {[%clk 0:00:59.8]} 16...
Be7 {[%clk 0:02:34.4]} 17. Rd1 {[%clk 0:00:51.7]} 17... Bxb4 {[%clk 0:02:30.8]}
18. Nc3 {[%clk 0:00:51.5]} 18... Bxc3 {[%clk 0:02:24.8]} 19. bxc3 {[%clk
0:00:50.8]} 19... Qb3 {[%clk 0:02:24.3]} 20. Qd2 {[%clk 0:00:23.8]} 20... Bxf3
{[%clk 0:02:21.5]} 21. gxf3 {[%clk 0:00:23.7]} 21... Rb8 {[%clk 0:02:21.7]} 22.
Rda1 {[%clk 0:00:22.6]} 22... h6 {[%clk 0:02:18.2]} 23. Kg2 {[%clk 0:00:22.5]}
23... f5 {[%clk 0:02:14.8]} 24. Ra7 {[%clk 0:00:20.1]} 24... Rf7 {[%clk
0:01:56.8]} 25. Rc7 {[%clk 0:00:19.5]} 25... f4 {[%clk 0:01:27.3]} 26. Raa7
{[%clk 0:00:17.3]} 26... Qb1 {[%clk 0:01:21.6]} 27. Rxd7 {[%clk 0:00:15.6]}
27... Qg6+ {[%clk 0:01:21.2]} 28. Kh3 {[%clk 0:00:13.7]} 28... Qf5+ {[%clk
0:01:07.8]} 29. Kg2 {[%clk 0:00:12.5]} 29... Rxd7 {[%clk 0:00:57.7]} 30. Rxd7
{[%clk 0:00:11.4]} 30... Rb1 {[%clk 0:00:56.7]} 31. Rd8+ {[%clk 0:00:06.7]}
31... Kh7 {[%clk 0:00:55.6]} 32. Rc8 {[%clk 0:00:05.8]} 32... Qg6+ {[%clk
0:00:49.8]} 33. Kh3 {[%clk 0:00:05.6]} 33... Rg1 {[%clk 0:00:50]} 0-1

[Event "*** Titled Tuesday Blitz"]
[Site "Chess.com"]
[Date "2020.05.05"]
[Round "4"]
[White "DamianoLew95"]
[Black "KingChess345"]
[Result "1-0"]
[WhiteElo "2570"]
[BlackElo "2182"]
[TimeControl "180+1"]
[EndTime "10:40:04 PDT"]
[Termination "DamianoLew95 won by checkmate"]

1. d4 {[%clk 0:03:00.1]} 1... Nf6 {[%clk 0:02:58.7]} 2. Bf4 {[%clk 0:02:55.8]}
2... e6 {[%clk 0:02:58.4]} 3. e3 {[%clk 0:02:56]} 3... d5 {[%clk 0:02:58.8]} 4.
Nf3 {[%clk 0:02:55.6]} 4... Bd6 {[%clk 0:02:59.7]} 5. Nbd2 {[%clk 0:02:56]} 5...
O-O {[%clk 0:02:57.3]} 6. Bd3 {[%clk 0:02:55.4]} 6... c5 {[%clk 0:02:57.1]} 7.
c3 {[%clk 0:02:54.7]} 7... Nc6 {[%clk 0:02:55.7]} 8. Bg3 {[%clk 0:02:52.9]} 8...
Qc7 {[%clk 0:02:49.6]} 9. Qe2 {[%clk 0:02:47.4]} 9... e5 {[%clk 0:02:45.1]} 10.
dxe5 {[%clk 0:02:47.7]} 10... Nxe5 {[%clk 0:02:45]} 11. Nxe5 {[%clk 0:02:48.3]}
11... Bxe5 {[%clk 0:02:45.7]} 12. Nf3 {[%clk 0:02:48.4]} 12... Bd6 {[%clk
0:02:40.3]} 13. Rd1 {[%clk 0:02:39.9]} 13... Bg4 {[%clk 0:02:38.6]} 14. Bb1
{[%clk 0:02:31.1]} 14... Rfe8 {[%clk 0:02:28.1]} 15. Bh4 {[%clk 0:02:23.3]}
15... d4 {[%clk 0:01:26.1]} 16. cxd4 {[%clk 0:01:50]} 16... cxd4 {[%clk
0:01:27]} 17. Rxd4 {[%clk 0:01:45.2]} 17... Qc1+ {[%clk 0:01:26.9]} 18. Rd1
{[%clk 0:01:43.8]} 18... Bb4+ {[%clk 0:01:26.2]} 19. Kf1 {[%clk 0:01:43.4]}
19... Rac8 {[%clk 0:01:25]} 20. h3 {[%clk 0:01:23.9]} 20... Bd7 {[%clk
0:00:44.2]} 21. g3 {[%clk 0:00:55.1]} 21... Bb5 {[%clk 0:00:35]} 22. Qxb5 {[%clk
0:00:54.2]} 22... Qxd1+ {[%clk 0:00:32.8]} 23. Kg2 {[%clk 0:00:54.1]} 23... Qd6
{[%clk 0:00:20.5]} 24. Bxf6 {[%clk 0:00:46.3]} 24... gxf6 {[%clk 0:00:19.1]} 25.
Qh5 {[%clk 0:00:40.8]} 25... Rc5 {[%clk 0:00:15.6]} 26. Qh6 {[%clk 0:00:25.7]}
26... Qf8 {[%clk 0:00:08.1]} 27. Qxh7# {[%clk 0:00:24.1]} 1-0